[Event "FIDE Women World Blitz 2021"]
[Site "Warsaw"]
[Date "2021.12.30"]
[Round "12.30"]
[White "Nur-Mukhametova, Alisa"]
[Black "Cyfka, Karina"]
[Result "0-1"]
[ECO "A13"]
[WhiteElo "2225"]
[BlackElo "2416"]
[Annotator "NA"]
[PlyCount "52"]
[EventDate "2021.12.29"]
[EventType "swiss"]
[EventCountry "POL"]
[Tiebreak "Cut1 Buchholz"]
[SourceTitle "playchess.com"]
[Source "ChessBase"]
[SourceQuality "1"]
[TimeControl "180+2"]

1. Nf3 {[%emt 0:00:02]} Nf6 {[%emt 0:00:01]} 2. g3 {[%emt 0:00:01]} d5 {
[%emt 0:00:04]} 3. c4 {[%emt 0:00:01]} d4 {[%emt 0:00:01]} 4. Bg2 {[%emt 0:00:
01]} c5 {[%emt 0:00:02]} 5. e3 {[%emt 0:00:01]} Nc6 {[%emt 0:00:07]} 6. exd4 {
[%emt 0:00:02]} cxd4 {[%emt 0:00:01]} 7. O-O {[%emt 0:00:03]} e6 {[%emt 0:00:
16]} 8. d3 {[%emt 0:00:03]} Bd6 {[%emt 0:00:03]} 9. Na3 {[%emt 0:00:33]} O-O {
[%emt 0:00:07]} 10. Nc2 {[%emt 0:00:01]} e5 {[%emt 0:00:05]} 11. Bg5 {[%emt 0:
00:14]} h6 {[%emt 0:00:09]} 12. Bxf6 {[%emt 0:00:02]} Qxf6 {[%emt 0:00:01]} 13.
Nd2 {[%emt 0:00:32]} Bc7 {[%emt 0:00:06]} 14. b4 {[%emt 0:00:10]} Rb8 {[%emt 0:
00:14]} 15. a4 {[%emt 0:01:04]} Qe7 {[%emt 0:00:15]} 16. Rb1 {[%emt 0:00:29]}
f5 {[%emt 0:00:09]} 17. Re1 {[%emt 0:00:01]} Qf6 {[%emt 0:00:07]} 18. Bd5+ {
[%emt 0:00:10]} Kh8 {[%emt 0:00:02]} 19. c5 {[%emt 0:00:06]} e4 {[%emt 0:00:13]
} 20. dxe4 {[%emt 0:00:02]} f4 {[%emt 0:00:01]} 21. b5 {[%emt 0:00:02]} fxg3 {
[%emt 0:00:04]} 22. fxg3 {[%emt 0:00:02]} Qf2+ {[%emt 0:00:18]} 23. Kh1 {
[%emt 0:00:00]} Bh3 {[%emt 0:00:01]} 24. Rg1 {[%emt 0:00:04]} Ne5 {[%emt 0:00:
08]} 25. Qe1 {[%emt 0:00:02]} Nd3 {[%emt 0:00:07]} 26. Qd1 {[%emt 0:00:02]} Qf6
{[%emt 0:00:18]} 0-1

[Event "FIDE Women World Blitz 2021"]
[Site "Warsaw"]
[Date "2021.12.30"]
[Round "12.31"]
[White "Antolak, Julia"]
[Black "Danielian, Elina"]
[Result "0-1"]
[ECO "B11"]
[WhiteElo "2334"]
[BlackElo "2450"]
[Annotator "ChessBase"]
[PlyCount "84"]
[EventDate "2021.12.29"]
[EventType "swiss"]
[EventCountry "POL"]
[Tiebreak "Cut1 Buchholz"]
[SourceTitle "playchess.com"]
[Source "ChessBase"]
[SourceQuality "1"]
[TimeControl "180+2"]

1. e4 {[%emt 0:00:01]} c6 {[%emt 0:00:00]} 2. Nc3 {[%emt 0:00:01]} d5 {[%emt 0:
00:01]} 3. Qf3 {[%emt 0:00:01]} dxe4 {[%emt 0:00:08]} 4. Nxe4 {[%emt 0:00:03]}
Nd7 {[%emt 0:00:09]} 5. c3 {[%emt 0:00:01]} Ngf6 {[%emt 0:00:07]} 6. d4 {
[%emt 0:00:02]} Nxe4 {[%emt 0:00:04]} 7. Qxe4 {[%emt 0:00:01]} Nf6 {[%emt 0:00:
01]} 8. Qh4 {[%emt 0:00:08]} e6 {[%emt 0:00:07]} 9. Nf3 {[%emt 0:00:08]} Be7 {
[%emt 0:00:02]} 10. Bg5 {[%emt 0:00:02]} h6 {[%emt 0:00:20]} 11. Bd3 {[%emt 0:
00:09]} b6 {[%emt 0:00:19]} 12. O-O {[%emt 0:00:06]} Bb7 {[%emt 0:00:01]} 13.
Rad1 {[%emt 0:00:12]} Nd5 {[%emt 0:00:19]} 14. Bxe7 {[%emt 0:00:04]} Qxe7 {
[%emt 0:00:01]} 15. Qg3 {[%emt 0:00:07]} O-O {[%emt 0:00:09]} 16. Rfe1 {
[%emt 0:00:01]} Rfd8 {[%emt 0:00:20]} 17. a3 {[%emt 0:00:01]} Qf6 {[%emt 0:00:
14]} 18. Ne5 {[%emt 0:00:25]} Rac8 {[%emt 0:00:14]} 19. Re4 {[%emt 0:00:30]} c5
{[%emt 0:00:44]} 20. Ng4 {[%emt 0:01:08]} Qg5 {[%emt 0:00:02]} 21. h4 {[%emt 0:
00:03]} Qh5 {[%emt 0:00:07]} 22. Re5 {[%emt 0:00:06]} f5 {[%emt 0:00:02]} 23.
Nh2 {[%emt 0:00:15]} Qxd1+ {[%emt 0:00:02]} 24. Bf1 {[%emt 0:00:04]} Ba6 {
[%emt 0:00:02]} 25. Rxe6 {[%emt 0:00:02]} Re8 {[%emt 0:00:05]} 26. Qe5 {
[%emt 0:00:02]} Rxe6 {[%emt 0:00:03]} 27. Qxe6+ {[%emt 0:00:00]} Kh8 {[%emt 0:
00:00]} 28. Qxd5 {[%emt 0:00:00]} cxd4 {[%emt 0:00:01]} 29. cxd4 {[%emt 0:00:
00]} Rc1 {[%emt 0:00:03]} 30. Qxf5 {[%emt 0:00:00]} Bxf1 {[%emt 0:00:03]} 31.
Qf8+ {[%emt 0:00:00]} Kh7 {[%emt 0:00:01]} 32. Qf5+ {[%emt 0:00:00]} Kg8 {
[%emt 0:00:00]} 33. Qe6+ {[%emt 0:00:02]} Kf8 34. Qd6+ {[%emt 0:00:00]} Ke8 {
[%emt 0:00:02]} 35. Qe6+ {[%emt 0:00:00]} Kd8 {[%emt 0:00:00]} 36. Qg8+ {
[%emt 0:00:00]} Kc7 {[%emt 0:00:02]} 37. Qxg7+ {[%emt 0:00:00]} Kb8 {[%emt 0:
00:02]} 38. Qf8+ {[%emt 0:00:14]} Kb7 {[%emt 0:00:01]} 39. Qe7+ {[%emt 0:00:01]
} Ka6 {[%emt 0:00:03]} 40. Nxf1 {[%emt 0:00:02]} Qxf1+ {[%emt 0:00:01]} 41. Kh2
{[%emt 0:00:01]} Qxf2 {[%emt 0:00:07]} 42. d5 {[%emt 0:00:06]} Qf4+ {[%emt 0:
00:04]} 0-1

[Event "FIDE Women World Blitz 2021"]
[Site "Warsaw"]
[Date "2021.12.30"]
[Round "12.32"]
[White "Smirnova, Ekaterina"]
[Black "Dworakowska, Joanna"]
[Result "1-0"]
[ECO "A84"]
[WhiteElo "2196"]
[BlackElo "2228"]
[Annotator "NA"]
[PlyCount "68"]
[EventDate "2021.12.29"]
[EventType "swiss"]
[EventCountry "POL"]
[Tiebreak "Cut1 Buchholz"]
[SourceTitle "playchess.com"]
[Source "ChessBase"]
[SourceQuality "1"]
[TimeControl "180+2"]

1. d4 {[%emt 0:00:01]} d5 {[%emt 0:00:01]} 2. c4 {[%emt 0:00:01]} e6 {[%emt 0:
00:01]} 3. Nc3 {[%emt 0:00:01]} f5 {[%emt 0:00:01]} 4. Bf4 {[%emt 0:00:08]} Nf6
{[%emt 0:00:03]} 5. e3 {[%emt 0:00:06]} c6 {[%emt 0:00:03]} 6. h3 {[%emt 0:00:
01]} Bd6 {[%emt 0:00:20]} 7. Nge2 {[%emt 0:00:06]} O-O {[%emt 0:00:06]} 8. Bxd6
{[%emt 0:00:18]} Qxd6 {[%emt 0:00:01]} 9. Nf4 {[%emt 0:00:03]} Kh8 {[%emt 0:00:
54]} 10. Bd3 {[%emt 0:00:03]} b6 {[%emt 0:00:30]} 11. g4 {[%emt 0:00:31]} dxc4
{[%emt 0:00:37]} 12. Bxc4 {[%emt 0:00:08]} e5 {[%emt 0:00:01]} 13. dxe5 {
[%emt 0:00:19]} Qxe5 {[%emt 0:00:01]} 14. g5 {[%emt 0:00:01]} Ne4 {[%emt 0:00:
20]} 15. Qh5 {[%emt 0:00:20]} Qe8 {[%emt 0:00:02]} 16. g6 {[%emt 0:00:14]} h6 {
[%emt 0:00:01]} 17. Rd1 {[%emt 0:00:06]} Nxc3 {[%emt 0:00:05]} 18. bxc3 {
[%emt 0:00:01]} Ba6 {[%emt 0:00:02]} 19. Bxa6 {[%emt 0:00:14]} Nxa6 {[%emt 0:
00:01]} 20. O-O {[%emt 0:00:06]} Nc5 {[%emt 0:00:01]} 21. Qe2 {[%emt 0:00:16]}
Ne4 {[%emt 0:00:06]} 22. Qc4 {[%emt 0:00:02]} Rf6 {[%emt 0:00:08]} 23. Kh2 {
[%emt 0:00:05]} Rd8 {[%emt 0:00:02]} 24. Rd4 {[%emt 0:00:04]} Rxd4 {[%emt 0:00:
05]} 25. Qxd4 {[%emt 0:00:02]} Rd6 {[%emt 0:00:03]} 26. Qa4 {[%emt 0:00:14]}
Qd7 {[%emt 0:00:01]} 27. Qa3 {[%emt 0:00:07]} Qc7 {[%emt 0:00:07]} 28. Rd1 {
[%emt 0:00:06]} c5 {[%emt 0:00:10]} 29. Rxd6 {[%emt 0:00:07]} Qxd6 {[%emt 0:00:
02]} 30. Qxa7 {[%emt 0:00:02]} Nf6 {[%emt 0:00:01]} 31. Qa8+ {[%emt 0:00:02]}
Ng8 {[%emt 0:00:02]} 32. Qb7 {[%emt 0:00:02]} Qd2 {[%emt 0:00:02]} 33. Kg2 {
[%emt 0:00:03]} Qb2 {[%emt 0:00:02]} 34. Nd5 {[%emt 0:00:03]} Qb1 {[%emt 0:00:
06]} 1-0

[Event "FIDE Women World Blitz 2021"]
[Site "Warsaw"]
[Date "2021.12.30"]
[Round "12.33"]
[White "Malicka, Maria"]
[Black "Fernandez, Maria Florencia"]
[Result "0-1"]
[ECO "B07"]
[WhiteElo "2307"]
[BlackElo "2184"]
[Annotator "NA"]
[PlyCount "88"]
[EventDate "2021.12.29"]
[EventType "swiss"]
[EventCountry "POL"]
[Tiebreak "Cut1 Buchholz"]
[SourceTitle "playchess.com"]
[Source "ChessBase"]
[SourceQuality "1"]
[TimeControl "180+2"]

1. e4 {[%emt 0:00:01]} d6 {[%emt 0:00:02]} 2. d4 {[%emt 0:00:01]} Nf6 {[%emt 0:
00:01]} 3. Nc3 {[%emt 0:00:02]} g6 {[%emt 0:00:00]} 4. Bg5 {[%emt 0:00:01]} Bg7
{[%emt 0:00:01]} 5. Qd2 {[%emt 0:00:05]} c6 {[%emt 0:00:05]} 6. f4 {[%emt 0:00:
07]} h6 {[%emt 0:00:04]} 7. Bh4 {[%emt 0:00:03]} O-O {[%emt 0:00:02]} 8. O-O-O
{[%emt 0:00:09]} b5 {[%emt 0:00:01]} 9. e5 {[%emt 0:00:07]} Ne8 {[%emt 0:00:01]
} 10. Nf3 {[%emt 0:00:09]} Nc7 {[%emt 0:00:07]} 11. Ne4 {[%emt 0:00:20]} dxe5 {
[%emt 0:00:06]} 12. dxe5 {[%emt 0:00:03]} Qxd2+ 13. Rxd2 {[%emt 0:00:01]} Nd5 {
[%emt 0:00:10]} 14. g3 {[%emt 0:00:16]} Bf5 {[%emt 0:00:23]} 15. Nc5 {[%emt 0:
00:14]} a6 {[%emt 0:00:37]} 16. Nd4 {[%emt 0:00:04]} e6 {[%emt 0:00:21]} 17.
Nxf5 {[%emt 0:00:40]} exf5 {[%emt 0:00:02]} 18. Bg2 {[%emt 0:00:09]} Ne3 {
[%emt 0:00:18]} 19. Bf3 {[%emt 0:00:08]} Nc4 {[%emt 0:00:12]} 20. Rd3 {[%emt 0:
00:05]} g5 {[%emt 0:00:05]} 21. fxg5 {[%emt 0:00:02]} Bxe5 {[%emt 0:00:02]} 22.
b3 {[%emt 0:00:13]} Nb6 {[%emt 0:00:19]} 23. gxh6 {[%emt 0:00:05]} a5 {[%emt 0:
00:02]} 24. Re1 {[%emt 0:00:08]} f6 {[%emt 0:00:08]} 25. g4 {[%emt 0:00:15]} a4
{[%emt 0:00:06]} 26. gxf5 {[%emt 0:00:08]} axb3 {[%emt 0:00:00]} 27. axb3 {
[%emt 0:00:01]} b4 {[%emt 0:00:11]} 28. Kd1 {[%emt 0:00:14]} Kh8 {[%emt 0:00:
05]} 29. Ne6 {[%emt 0:00:01]} Rg8 {[%emt 0:00:02]} 30. Ke2 {[%emt 0:00:02]} Ra2
{[%emt 0:00:11]} 31. Rc1 {[%emt 0:00:03]} N8d7 {[%emt 0:00:04]} 32. Nd4 {
[%emt 0:00:04]} Nc5 {[%emt 0:00:02]} 33. Nxc6 {[%emt 0:00:02]} Nxd3 {[%emt 0:
00:01]} 34. Kxd3 {[%emt 0:00:01]} Bc3 {[%emt 0:00:05]} 35. Nd4 {[%emt 0:00:02]}
Rf8 {[%emt 0:00:02]} 36. Ne6 {[%emt 0:00:04]} Rf7 {[%emt 0:00:02]} 37. Rg1 {
[%emt 0:00:02]} Raa7 {[%emt 0:00:06]} 38. Rg7 {[%emt 0:00:02]} Rad7+ {[%emt 0:
00:05]} 39. Ke4 {[%emt 0:00:03]} Nc8 {[%emt 0:00:04]} 40. Rxf7 {[%emt 0:00:01]}
Rxf7 {[%emt 0:00:01]} 41. Kd5 {[%emt 0:00:01]} Ne7+ {[%emt 0:00:01]} 42. Kd6 {
[%emt 0:00:04]} Nxf5+ {[%emt 0:00:01]} 43. Kc5 {[%emt 0:00:01]} Nxh4 {[%emt 0:
00:01]} 44. Nf4 {[%emt 0:00:02]} Nxf3 {[%emt 0:00:02]} 0-1

[Event "FIDE Women World Blitz 2021"]
[Site "Warsaw"]
[Date "2021.12.30"]
[Round "12.34"]
[White "Pavlidou, Ekaterini"]
[Black "Loskutova, Viktoriya"]
[Result "1-0"]
[ECO "E46"]
[WhiteElo "2177"]
[BlackElo "2195"]
[Annotator "NA"]
[PlyCount "81"]
[EventDate "2021.12.29"]
[EventType "swiss"]
[EventCountry "POL"]
[Tiebreak "Cut1 Buchholz"]
[SourceTitle "playchess.com"]
[Source "ChessBase"]
[SourceQuality "1"]
[TimeControl "180+2"]

1. d4 {[%emt 0:00:03]} Nf6 {[%emt 0:00:01]} 2. c4 {[%emt 0:00:00]} e6 {[%emt 0:
00:00]} 3. Nc3 {[%emt 0:00:02]} Bb4 {[%emt 0:00:01]} 4. e3 {[%emt 0:00:01]} O-O
{[%emt 0:00:02]} 5. Nge2 {[%emt 0:00:02]} d5 {[%emt 0:00:05]} 6. a3 {[%emt 0:
00:02]} Be7 {[%emt 0:00:17]} 7. cxd5 {[%emt 0:00:06]} exd5 {[%emt 0:00:01]} 8.
Nf4 {[%emt 0:00:11]} c6 {[%emt 0:00:11]} 9. Bd3 {[%emt 0:00:01]} a5 {[%emt 0:
00:02]} 10. O-O {[%emt 0:00:06]} Re8 {[%emt 0:00:04]} 11. f3 {[%emt 0:00:09]}
Bd6 {[%emt 0:01:23]} 12. b3 {[%emt 0:00:14]} Na6 {[%emt 0:00:21]} 13. Ra2 {
[%emt 0:00:08]} Nc7 {[%emt 0:00:04]} 14. g4 {[%emt 0:00:07]} h6 {[%emt 0:00:21]
} 15. Bb1 {[%emt 0:00:03]} c5 {[%emt 0:00:14]} 16. Rg2 {[%emt 0:00:36]} cxd4 {
[%emt 0:00:09]} 17. exd4 {[%emt 0:00:02]} Bxf4 {[%emt 0:00:07]} 18. Bxf4 {
[%emt 0:00:01]} Ne6 {[%emt 0:00:01]} 19. Be5 {[%emt 0:00:02]} Nd7 {[%emt 0:00:
05]} 20. Qd3 {[%emt 0:00:08]} Nef8 {[%emt 0:00:03]} 21. Bd6 {[%emt 0:00:09]}
Qb6 {[%emt 0:00:03]} 22. Bxf8 {[%emt 0:00:05]} Nxf8 {[%emt 0:00:01]} 23. Nxd5 {
[%emt 0:00:04]} Qd6 {[%emt 0:00:01]} 24. Nc3 {[%emt 0:00:13]} Qxa3 {[%emt 0:00:
03]} 25. Ne4 {[%emt 0:00:07]} Qb4 {[%emt 0:00:05]} 26. d5 {[%emt 0:00:30]} b6 {
[%emt 0:00:01]} 27. Qc4 {[%emt 0:00:31]} Qxc4 {[%emt 0:00:05]} 28. bxc4 {
[%emt 0:00:01]} Ba6 {[%emt 0:00:00]} 29. Ba2 {[%emt 0:00:01]} Rac8 {[%emt 0:00:
01]} 30. Nd6 {[%emt 0:00:01]} Rcd8 {[%emt 0:00:01]} 31. Nxe8 {[%emt 0:00:01]}
Rxe8 {[%emt 0:00:01]} 32. Rb2 {[%emt 0:00:02]} Rb8 {[%emt 0:00:02]} 33. Rfb1 {
[%emt 0:00:03]} Nd7 {[%emt 0:00:01]} 34. c5 {[%emt 0:00:02]} Bd3 {[%emt 0:00:
02]} 35. Rc1 {[%emt 0:00:06]} Rc8 {[%emt 0:00:03]} 36. c6 {[%emt 0:00:02]} Nc5
{[%emt 0:00:02]} 37. Rxb6 {[%emt 0:00:02]} Na4 {[%emt 0:00:01]} 38. Rb7 {
[%emt 0:00:02]} Ba6 {[%emt 0:00:03]} 39. Ra7 {[%emt 0:00:03]} Be2 {[%emt 0:00:
03]} 40. d6 {[%emt 0:00:01]} Bxf3 {[%emt 0:00:02]} 41. Rxf7 {[%emt 0:00:04]}
1-0

[Event "FIDE Women World Blitz 2021"]
[Site "Warsaw"]
[Date "2021.12.30"]
[Round "12.35"]
[White "Doluhanova, Evgeniya"]
[Black "Jarocka, Liwia"]
[Result "1-0"]
[ECO "A30"]
[WhiteElo "2237"]
[BlackElo "1851"]
[Annotator "NA"]
[PlyCount "129"]
[EventDate "2021.12.29"]
[EventType "swiss"]
[EventCountry "POL"]
[Tiebreak "Cut1 Buchholz"]
[SourceTitle "playchess.com"]
[Source "ChessBase"]
[SourceQuality "1"]
[TimeControl "180+2"]

1. Nf3 {[%emt 0:00:01]} Nf6 {[%emt 0:00:01]} 2. b3 {[%emt 0:00:02]} g6 {
[%emt 0:00:01]} 3. Bb2 {[%emt 0:00:01]} Bg7 {[%emt 0:00:01]} 4. e3 {[%emt 0:00:
03]} O-O {[%emt 0:00:02]} 5. Be2 {[%emt 0:00:06]} d5 {[%emt 0:00:01]} 6. O-O {
[%emt 0:00:03]} c5 {[%emt 0:00:02]} 7. c4 {[%emt 0:00:02]} b6 {[%emt 0:00:04]}
8. d4 {[%emt 0:00:07]} cxd4 {[%emt 0:00:08]} 9. Nxd4 {[%emt 0:00:21]} Bb7 {
[%emt 0:00:09]} 10. Bf3 {[%emt 0:00:12]} Nbd7 {[%emt 0:00:14]} 11. Nc3 {
[%emt 0:00:34]} Ne5 {[%emt 0:00:13]} 12. Bxd5 {[%emt 0:00:06]} Nxd5 {[%emt 0:
00:02]} 13. Nxd5 {[%emt 0:00:02]} Bxd5 {[%emt 0:00:02]} 14. cxd5 {[%emt 0:00:
02]} Qxd5 {[%emt 0:00:03]} 15. Qe2 {[%emt 0:00:03]} Qb7 {[%emt 0:00:14]} 16.
Rfd1 {[%emt 0:00:07]} Rfd8 {[%emt 0:00:01]} 17. h3 {[%emt 0:00:01]} Rac8 {
[%emt 0:00:02]} 18. Qb5 {[%emt 0:00:14]} h5 {[%emt 0:00:38]} 19. Rac1 {[%emt 0:
00:11]} a6 {[%emt 0:00:14]} 20. Qe2 {[%emt 0:00:03]} b5 {[%emt 0:00:03]} 21.
Rc2 {[%emt 0:00:35]} Rxc2 {[%emt 0:00:03]} 22. Qxc2 {[%emt 0:00:02]} Rc8 {
[%emt 0:00:05]} 23. Qd2 {[%emt 0:00:02]} Qd7 {[%emt 0:00:26]} 24. f4 {[%emt 0:
00:08]} Nc6 {[%emt 0:00:00]} 25. Nxc6 {[%emt 0:00:04]} Qxc6 {[%emt 0:00:05]}
26. Bxg7 {[%emt 0:00:02]} Kxg7 {[%emt 0:00:01]} 27. Qd4+ {[%emt 0:00:04]} Qf6 {
[%emt 0:00:05]} 28. Qxf6+ {[%emt 0:00:07]} Kxf6 {[%emt 0:00:01]} 29. Rd2 {
[%emt 0:00:02]} Rc1+ {[%emt 0:00:05]} 30. Kf2 {[%emt 0:00:01]} Ra1 {[%emt 0:00:
01]} 31. e4 {[%emt 0:00:04]} e6 {[%emt 0:00:01]} 32. Rc2 {[%emt 0:00:07]} Rb1 {
[%emt 0:00:15]} 33. Kf3 {[%emt 0:00:07]} Rf1+ {[%emt 0:00:03]} 34. Kg3 {
[%emt 0:00:07]} Re1 {[%emt 0:00:02]} 35. Kf3 {[%emt 0:00:04]} Rf1+ {[%emt 0:00:
01]} 36. Ke3 {[%emt 0:00:02]} Re1+ {[%emt 0:00:01]} 37. Kd4 {[%emt 0:00:02]}
Ke7 {[%emt 0:00:22]} 38. Rc7+ {[%emt 0:00:04]} Kf8 {[%emt 0:00:03]} 39. Ke5 {
[%emt 0:00:02]} Kg7 {[%emt 0:00:06]} 40. g4 {[%emt 0:00:01]} hxg4 {[%emt 0:00:
02]} 41. hxg4 {[%emt 0:00:02]} Re2 {[%emt 0:00:00]} 42. a4 {[%emt 0:00:03]}
bxa4 {[%emt 0:00:02]} 43. bxa4 {[%emt 0:00:01]} Ra2 {[%emt 0:00:00]} 44. Rc4 {
[%emt 0:00:02]} g5 {[%emt 0:00:08]} 45. f5 {[%emt 0:00:04]} exf5 {[%emt 0:00:
01]} 46. Kxf5 {[%emt 0:00:02]} f6 {[%emt 0:00:10]} 47. Rc7+ {[%emt 0:00:01]}
Kg8 {[%emt 0:00:02]} 48. Kg6 {[%emt 0:00:04]} Kf8 {[%emt 0:00:06]} 49. Kxf6 {
[%emt 0:00:01]} Ke8 {[%emt 0:00:01]} 50. Rc4 {[%emt 0:00:03]} Kd7 {[%emt 0:00:
04]} 51. Kxg5 {[%emt 0:00:01]} Ke6 {[%emt 0:00:01]} 52. Kg6 {[%emt 0:00:02]}
Rg2 {[%emt 0:00:01]} 53. g5 {[%emt 0:00:01]} Ke5 {[%emt 0:00:01]} 54. Rc6 {
[%emt 0:00:03]} Kxe4 {[%emt 0:00:01]} 55. Rxa6 {[%emt 0:00:01]} Kf4 {[%emt 0:
00:02]} 56. Rf6+ {[%emt 0:00:02]} Ke5 {[%emt 0:00:01]} 57. a5 {[%emt 0:00:02]}
Ra2 {[%emt 0:00:01]} 58. a6 {[%emt 0:00:01]} Ra4 {[%emt 0:00:02]} 59. Rb6 {
[%emt 0:00:04]} Kd5 {[%emt 0:00:04]} 60. Kf7 {[%emt 0:00:02]} Kc5 {[%emt 0:00:
01]} 61. Rf6 {[%emt 0:00:02]} Kd5 {[%emt 0:00:01]} 62. g6 {[%emt 0:00:01]} Ke5
{[%emt 0:00:03]} 63. g7 {[%emt 0:00:03]} Rg4 {[%emt 0:00:02]} 64. Re6+ {
[%emt 0:00:02]} Kf5 {[%emt 0:00:01]} 65. Rb6 {[%emt 0:00:01]} 1-0

[Event "FIDE Women World Blitz 2021"]
[Site "Warsaw"]
[Date "2021.12.30"]
[Round "12.36"]
[White "Dylag, Emilia"]
[Black "Gaboyan, Susanna"]
[Result "1/2-1/2"]
[ECO "D76"]
[WhiteElo "1863"]
[BlackElo "2253"]
[Annotator "NA"]
[PlyCount "86"]
[EventDate "2021.12.29"]
[EventType "swiss"]
[EventCountry "POL"]
[Tiebreak "Cut1 Buchholz"]
[SourceTitle "playchess.com"]
[Source "ChessBase"]
[SourceQuality "1"]
[TimeControl "180+2"]

1. d4 {[%emt 0:00:01]} Nf6 {[%emt 0:00:01]} 2. c4 {[%emt 0:00:02]} g6 {[%emt 0:
00:01]} 3. Nf3 {[%emt 0:00:01]} Bg7 {[%emt 0:00:01]} 4. g3 {[%emt 0:00:02]} O-O
{[%emt 0:00:01]} 5. Bg2 {[%emt 0:00:01]} d5 {[%emt 0:00:01]} 6. cxd5 {[%emt 0:
00:02]} Nxd5 {[%emt 0:00:02]} 7. O-O {[%emt 0:00:03]} Nc6 {[%emt 0:00:02]} 8.
Nc3 {[%emt 0:00:04]} Nb6 {[%emt 0:00:02]} 9. e3 {[%emt 0:00:03]} e5 {[%emt 0:
00:09]} 10. d5 {[%emt 0:00:20]} Ne7 {[%emt 0:00:14]} 11. e4 {[%emt 0:00:14]} f5
{[%emt 0:00:20]} 12. exf5 {[%emt 0:00:14]} gxf5 {[%emt 0:00:20]} 13. Ng5 {
[%emt 0:00:12]} h6 {[%emt 0:00:34]} 14. Ne6 {[%emt 0:00:24]} Bxe6 {[%emt 0:00:
02]} 15. dxe6 {[%emt 0:00:01]} Qxd1 {[%emt 0:00:05]} 16. Rxd1 {[%emt 0:00:01]}
c6 {[%emt 0:00:07]} 17. Be3 {[%emt 0:00:10]} Rad8 {[%emt 0:00:21]} 18. Bc5 {
[%emt 0:00:24]} Bf6 {[%emt 0:00:13]} 19. Bh3 {[%emt 0:00:22]} Nc4 {[%emt 0:00:
50]} 20. b3 {[%emt 0:00:06]} Nb6 {[%emt 0:00:10]} 21. Bg2 {[%emt 0:00:01]} e4 {
[%emt 0:00:01]} 22. Rxd8 {[%emt 0:00:30]} Rxd8 {[%emt 0:00:01]} 23. Rd1 {
[%emt 0:00:02]} Ned5 {[%emt 0:00:06]} 24. Nxd5 {[%emt 0:00:18]} Nxd5 {[%emt 0:
00:01]} 25. f3 {[%emt 0:00:08]} e3 {[%emt 0:00:03]} 26. e7 {[%emt 0:00:02]} Re8
{[%emt 0:00:02]} 27. f4 {[%emt 0:00:02]} Bxe7 {[%emt 0:00:01]} 28. Bxd5+ {
[%emt 0:00:02]} cxd5 {[%emt 0:00:01]} 29. Bxe3 {[%emt 0:00:01]} Bb4 {[%emt 0:
00:04]} 30. Bf2 {[%emt 0:00:03]} Re2 {[%emt 0:00:03]} 31. Rxd5 {[%emt 0:00:03]}
Rxa2 {[%emt 0:00:01]} 32. Rxf5 {[%emt 0:00:02]} Kg7 {[%emt 0:00:02]} 33. Rd5 {
[%emt 0:00:01]} b6 {[%emt 0:00:01]} 34. Rd7+ {[%emt 0:00:01]} Kg6 {[%emt 0:00:
01]} 35. Rd3 {[%emt 0:00:03]} a5 {[%emt 0:00:02]} 36. g4 {[%emt 0:00:01]} Bc5 {
[%emt 0:00:04]} 37. Bxc5 {[%emt 0:00:02]} bxc5 {[%emt 0:00:00]} 38. Rc3 {
[%emt 0:00:01]} a4 {[%emt 0:00:04]} 39. bxa4 {[%emt 0:00:02]} Rxa4 {[%emt 0:00:
01]} 40. f5+ {[%emt 0:00:04]} Kg5 {[%emt 0:00:01]} 41. Rxc5 {[%emt 0:00:02]}
Rxg4+ {[%emt 0:00:01]} 42. Kf2 {[%emt 0:00:03]} Rf4+ {[%emt 0:00:02]} 43. Kg2 {
[%emt 0:00:02]} Rxf5 {[%emt 0:00:01]} 1/2-1/2

[Event "FIDE Women World Blitz 2021"]
[Site "Warsaw"]
[Date "2021.12.30"]
[Round "12.37"]
[White "Ovod, Evgenija"]
[Black "Badelka, Olga"]
[Result "1-0"]
[ECO "C54"]
[WhiteElo "2366"]
[BlackElo "2188"]
[Annotator "NA"]
[PlyCount "98"]
[EventDate "2021.12.29"]
[EventType "swiss"]
[EventCountry "POL"]
[Tiebreak "Cut1 Buchholz"]
[SourceTitle "playchess.com"]
[Source "ChessBase"]
[SourceQuality "1"]
[TimeControl "180+2"]

1. e4 {[%emt 0:00:00]} e5 {[%emt 0:00:01]} 2. Nf3 {[%emt 0:00:01]} Nc6 3. Bc4 {
[%emt 0:00:01]} Bc5 {[%emt 0:00:02]} 4. O-O {[%emt 0:00:01]} Nf6 {[%emt 0:00:
02]} 5. d3 {[%emt 0:00:01]} h6 {[%emt 0:00:02]} 6. Nbd2 {[%emt 0:00:05]} d6 {
[%emt 0:00:01]} 7. c3 {[%emt 0:00:06]} a5 {[%emt 0:00:01]} 8. h3 {[%emt 0:00:
15]} O-O {[%emt 0:00:02]} 9. Re1 {[%emt 0:00:01]} Bb6 {[%emt 0:00:02]} 10. Nf1
{[%emt 0:00:04]} Ne7 {[%emt 0:00:01]} 11. Ng3 {[%emt 0:00:09]} Ng6 {[%emt 0:00:
01]} 12. d4 {[%emt 0:00:03]} c6 {[%emt 0:00:04]} 13. Bd3 {[%emt 0:00:20]} Re8 {
[%emt 0:00:02]} 14. Qc2 {[%emt 0:00:10]} Be6 {[%emt 0:00:14]} 15. Be3 {[%emt 0:
00:06]} a4 {[%emt 0:00:08]} 16. d5 {[%emt 0:00:38]} Bd7 {[%emt 0:00:04]} 17. c4
{[%emt 0:00:08]} Bxe3 {[%emt 0:00:08]} 18. fxe3 {[%emt 0:00:03]} Qb6 {[%emt 0:
00:24]} 19. Kh2 {[%emt 0:00:02]} Qc5 {[%emt 0:00:04]} 20. Qd2 {[%emt 0:00:02]}
cxd5 {[%emt 0:00:08]} 21. cxd5 {[%emt 0:00:05]} a3 {[%emt 0:00:18]} 22. Rac1 {
[%emt 0:00:04]} Qb6 {[%emt 0:00:03]} 23. b3 {[%emt 0:00:04]} Rec8 {[%emt 0:00:
05]} 24. Rc2 {[%emt 0:00:07]} Rxc2 {[%emt 0:00:03]} 25. Bxc2 {[%emt 0:00:01]}
Rc8 {[%emt 0:00:02]} 26. Nf5 {[%emt 0:00:04]} Bxf5 {[%emt 0:00:08]} 27. exf5 {
[%emt 0:00:01]} Nf8 {[%emt 0:00:06]} 28. e4 {[%emt 0:00:04]} Qc5 {[%emt 0:00:
11]} 29. Bd3 {[%emt 0:00:01]} Qc3 {[%emt 0:00:04]} 30. Qe2 {[%emt 0:00:04]}
N8d7 {[%emt 0:00:03]} 31. Rd1 {[%emt 0:00:05]} Nc5 {[%emt 0:00:05]} 32. Bb1 {
[%emt 0:00:04]} Na6 {[%emt 0:00:08]} 33. Nd2 {[%emt 0:00:08]} Qb4 {[%emt 0:00:
21]} 34. Nc4 {[%emt 0:00:05]} b5 {[%emt 0:00:01]} 35. Nd2 {[%emt 0:00:07]} Rc3
{[%emt 0:00:08]} 36. Bd3 {[%emt 0:00:04]} Nc5 {[%emt 0:00:10]} 37. Nb1 {
[%emt 0:00:07]} Rxd3 {[%emt 0:00:06]} 38. Rxd3 {[%emt 0:00:02]} Nxd3 {[%emt 0:
00:01]} 39. Qxd3 {[%emt 0:00:01]} Nxe4 {[%emt 0:00:02]} 40. Nxa3 {[%emt 0:00:
04]} Nc5 {[%emt 0:00:06]} 41. Qxb5 {[%emt 0:00:05]} Qf4+ {[%emt 0:00:22]} 42.
Kh1 {[%emt 0:00:02]} Ne4 {[%emt 0:00:08]} 43. Qe8+ {[%emt 0:00:07]} Kh7 {
[%emt 0:00:01]} 44. Qxf7 {[%emt 0:00:02]} Ng3+ {[%emt 0:00:09]} 45. Kg1 {
[%emt 0:00:05]} Nxf5 {[%emt 0:00:01]} 46. Nc4 {[%emt 0:00:04]} Qd4+ {[%emt 0:
00:05]} 47. Kh1 {[%emt 0:00:04]} Nh4 {[%emt 0:00:04]} 48. Nxd6 {[%emt 0:00:07]}
Qd1+ {[%emt 0:00:02]} 49. Kh2 {[%emt 0:00:02]} Qe2 {[%emt 0:00:01]} 1-0